[Event "Titled Tuesday Blitz November 15 Early 2022"]
[White "Fedoseev, Vladimir"]
[Black "Stribuk, Artiom"]
[WhiteFideId "24130737"]
[BlackFideId "13515659"]
[WhiteElo "2726"]
[BlackElo "2371"]
[Result "1-0"]
[Round "06"]
[TimeControl "180+1"]
[Date "2022.11.15"]
[WhiteClock "0:00:11"]
[BlackClock "0:00:02"]

1. e4 {[%clk 0:03:00]}  c5 {[%clk 0:02:59]} 2. Nf3 {[%clk 0:03:00]}  Nc6 {[%clk 0:02:59]} 3. Bb5 {[%clk 0:02:59]}  e6 {[%clk 0:02:59]} 4. Nc3 {[%clk 0:02:56]}  Nd4 {[%clk 0:02:53]} 5. O-O {[%clk 0:02:55]}  a6 {[%clk 0:02:45]} 6. Bd3 {[%clk 0:02:54]}  Nc6 {[%clk 0:02:43]} 7. Be2 {[%clk 0:02:54]}  Nd4 {[%clk 0:02:43]} 8. Nxd4 {[%clk 0:02:50]}  cxd4 {[%clk 0:02:43]} 9. Nb1 {[%clk 0:02:50]}  Bc5 {[%clk 0:02:27]} 10. d3 {[%clk 0:02:48]}  Ne7 {[%clk 0:02:28]} 11. c4 {[%clk 0:02:35]}  Nc6 {[%clk 0:02:00]} 12. f4 {[%clk 0:02:31]}  b5 {[%clk 0:01:44]} 13. cxb5 {[%clk 0:02:22]}  axb5 {[%clk 0:01:45]} 14. Nd2 {[%clk 0:02:23]}  Bb7 {[%clk 0:01:39]} 15. f5 {[%clk 0:02:21]}  Qe7 {[%clk 0:01:28]} 16. Qe1 {[%clk 0:02:12]}  f6 {[%clk 0:01:27]} 17. Nb3 {[%clk 0:02:05]}  O-O {[%clk 0:01:14]} 18. Nxc5 {[%clk 0:01:54]}  Qxc5 {[%clk 0:01:15]} 19. Bd2 {[%clk 0:01:54]}  Qc2 {[%clk 0:00:58]} 20. Qc1 {[%clk 0:01:47]}  Qxc1 {[%clk 0:00:57]} 21. Rfxc1 {[%clk 0:01:48]}  exf5 {[%clk 0:00:45]} 22. exf5 {[%clk 0:01:45]}  Ne5 {[%clk 0:00:46]} 23. Bb4 {[%clk 0:01:37]}  Rfc8 {[%clk 0:00:45]} 24. Bc5 {[%clk 0:01:34]}  Kf7 {[%clk 0:00:43]} 25. a3 {[%clk 0:01:27]}  Nc6 {[%clk 0:00:20]} 26. Bf3 {[%clk 0:01:27]}  g6 {[%clk 0:00:19]} 27. Bd5+ {[%clk 0:01:22]}  Kg7 {[%clk 0:00:19]} 28. fxg6 {[%clk 0:01:07]}  hxg6 {[%clk 0:00:20]} 29. Kf2 {[%clk 0:01:07]}  Re8 {[%clk 0:00:20]} 30. Re1 {[%clk 0:01:03]}  Re5 {[%clk 0:00:19]} 31. Rxe5 {[%clk 0:00:59]}  fxe5 {[%clk 0:00:19]} 32. Re1 {[%clk 0:00:52]}  Re8 {[%clk 0:00:17]} 33. Kg3 {[%clk 0:00:52]}  Nd8 {[%clk 0:00:14]} 34. Bxb7 {[%clk 0:00:51]}  Nxb7 {[%clk 0:00:15]} 35. Bxd4 {[%clk 0:00:50]}  d6 {[%clk 0:00:15]} 36. Bc3 {[%clk 0:00:48]}  Nc5 {[%clk 0:00:16]} 37. d4 {[%clk 0:00:46]}  Na4 {[%clk 0:00:16]} 38. Bb4 {[%clk 0:00:17]}  Kf7 {[%clk 0:00:06]} 39. b3 {[%clk 0:00:15]}  Nb2 {[%clk 0:00:05]} 40. Bxd6 {[%clk 0:00:14]}  exd4 {[%clk 0:00:02]} 41. Rxe8 {[%clk 0:00:14]}  Kxe8 {[%clk 0:00:03]} 42. Kf4 {[%clk 0:00:14]}  Kd7 {[%clk 0:00:03]} 43. Bb4 {[%clk 0:00:12]}  Ke6 {[%clk 0:00:02]} 44. Ke4 {[%clk 0:00:12]}  Nd1 {[%clk 0:00:03]} 45. Kxd4 {[%clk 0:00:11]}  Nf2 {[%clk 0:00:02]} 46. h3 {[%clk 0:00:12]}  Kd7 {[%clk 0:00:02]} 47. Be1 {[%clk 0:00:12]}  Nd1 {[%clk 0:00:01]} 48. Kd3 {[%clk 0:00:11]}  Kc6 {[%clk 0:00:02]} 49. Kd2 {[%clk 0:00:11]} 1-0


[Site "https://www.chess.com"]

[Event "Titled Tuesday Blitz November 15 Early 2022"]
[White "Fernandez De La Vara, Arnaldo"]
[Black "Golubova, Anna"]
[WhiteFideId "3518388"]
[BlackFideId "24173606"]
[WhiteElo "2387"]
[BlackElo "2047"]
[Result "1-0"]
[Round "06"]
[TimeControl "180+1"]
[Date "2022.11.16"]
[WhiteClock "0:00:09"]
[BlackClock "0:00:18"]

1. Nf3 {[%clk 0:03:00]}  g6 {[%clk 0:02:59]} 2. g3 {[%clk 0:03:01]}  Bg7 {[%clk 0:03:00]} 3. Bg2 {[%clk 0:03:02]}  d6 {[%clk 0:03:00]} 4. d4 {[%clk 0:03:02]}  Nf6 {[%clk 0:03:00]} 5. b3 {[%clk 0:03:01]}  O-O {[%clk 0:03:01]} 6. Bb2 {[%clk 0:03:02]}  Nbd7 {[%clk 0:02:58]} 7. c4 {[%clk 0:03:01]}  Re8 {[%clk 0:02:55]} 8. O-O {[%clk 0:03:00]}  c6 {[%clk 0:02:55]} 9. Nc3 {[%clk 0:03:00]}  Qc7 {[%clk 0:02:55]} 10. Qc2 {[%clk 0:03:00]}  e5 {[%clk 0:02:56]} 11. e4 {[%clk 0:03:00]}  exd4 {[%clk 0:02:54]} 12. Nxd4 {[%clk 0:03:01]}  Nc5 {[%clk 0:02:53]} 13. Rfe1 {[%clk 0:02:56]}  a5 {[%clk 0:02:51]} 14. Rad1 {[%clk 0:02:55]}  Be6 {[%clk 0:02:40]} 15. h3 {[%clk 0:02:48]}  h5 {[%clk 0:02:23]} 16. f4 {[%clk 0:02:41]}  a4 {[%clk 0:02:03]} 17. Kh2 {[%clk 0:01:35]}  axb3 {[%clk 0:02:02]} 18. axb3 {[%clk 0:01:35]}  Na6 {[%clk 0:02:00]} 19. f5 {[%clk 0:01:11]}  Bd7 {[%clk 0:01:54]} 20. fxg6 {[%clk 0:01:09]}  fxg6 {[%clk 0:01:54]} 21. Nf3 {[%clk 0:00:45]}  Nb4 {[%clk 0:01:52]} 22. Qd2 {[%clk 0:00:45]}  Ra5 {[%clk 0:01:35]} 23. Ne2 {[%clk 0:00:36]}  c5 {[%clk 0:01:28]} 24. Nf4 {[%clk 0:00:35]}  Kh7 {[%clk 0:01:14]} 25. Ng5+ {[%clk 0:00:35]}  Kg8 {[%clk 0:01:10]} 26. Nxg6 {[%clk 0:00:35]}  Ra3 {[%clk 0:01:06]} 27. Bxa3 {[%clk 0:00:34]}  Nc6 {[%clk 0:01:00]} 28. Bb2 {[%clk 0:00:30]}  Nd4 {[%clk 0:00:58]} 29. Nf3 {[%clk 0:00:24]}  Nxe4 {[%clk 0:00:55]} 30. Rxe4 {[%clk 0:00:24]}  Rxe4 {[%clk 0:00:54]} 31. Nxd4 {[%clk 0:00:24]}  Re8 {[%clk 0:00:50]} 32. Nf3 {[%clk 0:00:19]}  Bf5 {[%clk 0:00:45]} 33. Qg5 {[%clk 0:00:17]}  Qf7 {[%clk 0:00:39]} 34. Nf4 {[%clk 0:00:12]}  Bc2 {[%clk 0:00:32]} 35. Rxd6 {[%clk 0:00:10]}  Bxb3 {[%clk 0:00:27]} 36. Bxg7 {[%clk 0:00:10]}  Bc2 {[%clk 0:00:24]} 37. Bb2+ {[%clk 0:00:08]}  Kf8 {[%clk 0:00:23]} 38. Rf6 {[%clk 0:00:08]}  Ke7 {[%clk 0:00:18]} 39. Rxf7+ {[%clk 0:00:08]}  Kxf7 {[%clk 0:00:19]} 40. Qf6+ {[%clk 0:00:08]}  Kg8 {[%clk 0:00:18]} 41. Qg7# {[%clk 0:00:09]} 1-0


[Site "https://www.chess.com"]

[Event "Titled Tuesday Blitz November 15 Early 2022"]
[White "Fiedorek, Michal"]
[Black "Golubev, Mikhail"]
[WhiteFideId "1199528"]
[BlackFideId "14100983"]
[WhiteElo "2201"]
[BlackElo "2374"]
[Result "1-0"]
[Round "06"]
[TimeControl "180+1"]
[Date "2022.11.16"]
[WhiteClock "0:00:29"]
[BlackClock "0:00:01"]

1. e4 {[%clk 0:02:58]}  g6 {[%clk 0:02:57]} 2. d4 {[%clk 0:02:58]}  Bg7 {[%clk 0:02:58]} 3. Nc3 {[%clk 0:02:58]}  d6 {[%clk 0:02:54]} 4. Be3 {[%clk 0:02:58]}  c6 {[%clk 0:02:51]} 5. a4 {[%clk 0:02:57]}  Nd7 {[%clk 0:02:46]} 6. Qd2 {[%clk 0:02:56]}  Ngf6 {[%clk 0:02:32]} 7. h3 {[%clk 0:02:53]}  O-O {[%clk 0:02:24]} 8. Nf3 {[%clk 0:02:53]}  d5 {[%clk 0:02:15]} 9. e5 {[%clk 0:02:44]}  Ne4 {[%clk 0:02:15]} 10. Nxe4 {[%clk 0:02:43]}  dxe4 {[%clk 0:02:16]} 11. Ng5 {[%clk 0:02:43]}  c5 {[%clk 0:01:42]} 12. e6 {[%clk 0:02:42]}  cxd4 {[%clk 0:01:01]} 13. Bxd4 {[%clk 0:02:39]}  Bxd4 {[%clk 0:00:46]} 14. exf7+ {[%clk 0:02:15]}  Rxf7 {[%clk 0:00:46]} 15. Nxf7 {[%clk 0:02:15]}  Qb6 {[%clk 0:00:45]} 16. Bc4 {[%clk 0:02:11]}  e6 {[%clk 0:00:15]} 17. c3 {[%clk 0:01:21]}  Bf6 {[%clk 0:00:12]} 18. Nd6 {[%clk 0:01:15]}  e3 {[%clk 0:00:12]} 19. Bxe6+ {[%clk 0:01:08]}  Kh8 {[%clk 0:00:11]} 20. fxe3 {[%clk 0:01:02]}  Bh4+ {[%clk 0:00:11]} 21. Ke2 {[%clk 0:01:02]}  Ne5 {[%clk 0:00:10]} 22. Bxc8 {[%clk 0:00:53]}  Be7 {[%clk 0:00:10]} 23. Rad1 {[%clk 0:00:37]}  Bxd6 {[%clk 0:00:08]} 24. Qxd6 {[%clk 0:00:37]}  Qxd6 {[%clk 0:00:08]} 25. Rxd6 {[%clk 0:00:37]}  Rxc8 {[%clk 0:00:08]} 26. Rhd1 {[%clk 0:00:36]}  Kg7 {[%clk 0:00:08]} 27. Re6 {[%clk 0:00:35]}  Nc4 {[%clk 0:00:04]} 28. Rd7+ {[%clk 0:00:35]}  Kh6 {[%clk 0:00:04]} 29. Rxb7 {[%clk 0:00:35]}  a6 {[%clk 0:00:03]} 30. Ree7 {[%clk 0:00:35]}  Kg5 {[%clk 0:00:03]} 31. Rbc7 {[%clk 0:00:33]}  Rxc7 {[%clk 0:00:02]} 32. Rxc7 {[%clk 0:00:34]}  Nxb2 {[%clk 0:00:02]} 33. c4 {[%clk 0:00:34]}  Nxa4 {[%clk 0:00:02]} 34. Ra7 {[%clk 0:00:32]}  Nc5 {[%clk 0:00:01]} 35. Rxh7 {[%clk 0:00:31]}  a5 {[%clk 0:00:01]} 36. Rc7 {[%clk 0:00:31]}  Nb3 {[%clk 0:00:01]} 37. Ra7 {[%clk 0:00:29]} 1-0


[Site "https://www.chess.com"]

[Event "Titled Tuesday Blitz November 15 Early 2022"]
[White "Gabrielian, Artur"]
[Black "Alekseenko, Kirill"]
[WhiteFideId "4131002"]
[BlackFideId "4135539"]
[WhiteElo "2432"]
[BlackElo "2682"]
[Result "1-0"]
[Round "06"]
[TimeControl "180+1"]
[Date "2022.11.15"]
[WhiteClock "0:00:08"]
[BlackClock "0:00:04"]

1. e4 {[%clk 0:03:00]}  e5 {[%clk 0:03:00]} 2. Nf3 {[%clk 0:03:00]}  Nc6 {[%clk 0:03:00]} 3. Bc4 {[%clk 0:03:00]}  Nf6 {[%clk 0:03:00]} 4. d3 {[%clk 0:03:00]}  Bc5 {[%clk 0:02:59]} 5. Bg5 {[%clk 0:03:00]}  d6 {[%clk 0:02:58]} 6. c3 {[%clk 0:03:00]}  a6 {[%clk 0:02:58]} 7. Nbd2 {[%clk 0:03:00]}  Ba7 {[%clk 0:02:58]} 8. O-O {[%clk 0:02:57]}  h6 {[%clk 0:02:58]} 9. Bh4 {[%clk 0:02:57]}  g5 {[%clk 0:02:59]} 10. Bg3 {[%clk 0:02:57]}  O-O {[%clk 0:02:49]} 11. a4 {[%clk 0:02:45]}  Kg7 {[%clk 0:02:44]} 12. b4 {[%clk 0:02:39]}  Nh7 {[%clk 0:02:43]} 13. b5 {[%clk 0:02:38]}  Na5 {[%clk 0:02:40]} 14. d4 {[%clk 0:02:38]}  f6 {[%clk 0:02:29]} 15. Ba2 {[%clk 0:02:32]}  Re8 {[%clk 0:02:24]} 16. Re1 {[%clk 0:02:30]}  Nf8 {[%clk 0:02:19]} 17. Nf1 {[%clk 0:02:29]}  Ng6 {[%clk 0:02:17]} 18. Ne3 {[%clk 0:02:27]}  c6 {[%clk 0:01:31]} 19. bxa6 {[%clk 0:02:24]}  bxa6 {[%clk 0:01:31]} 20. Nf5+ {[%clk 0:02:23]}  Bxf5 {[%clk 0:01:24]} 21. exf5 {[%clk 0:02:23]}  Ne7 {[%clk 0:01:25]} 22. Be6 {[%clk 0:02:07]}  Nd5 {[%clk 0:01:05]} 23. Rc1 {[%clk 0:01:49]}  Rb8 {[%clk 0:00:53]} 24. h4 {[%clk 0:01:29]}  Rh8 {[%clk 0:00:37]} 25. c4 {[%clk 0:00:32]}  Nc7 {[%clk 0:00:37]} 26. dxe5 {[%clk 0:00:32]}  dxe5 {[%clk 0:00:38]} 27. Nxe5 {[%clk 0:00:32]}  Rb2 {[%clk 0:00:13]} 28. Qh5 {[%clk 0:00:30]}  Qe8 {[%clk 0:00:13]} 29. Bf7 {[%clk 0:00:30]}  Qe7 {[%clk 0:00:10]} 30. Qg6+ {[%clk 0:00:25]}  Kf8 {[%clk 0:00:10]} 31. Rcd1 {[%clk 0:00:13]}  Bxf2+ {[%clk 0:00:08]} 32. Bxf2 {[%clk 0:00:13]}  fxe5 {[%clk 0:00:09]} 33. Be6 {[%clk 0:00:09]}  Nxe6 {[%clk 0:00:07]} 34. fxe6 {[%clk 0:00:10]}  Rxf2 {[%clk 0:00:03]} 35. Kxf2 {[%clk 0:00:08]}  Rg8 {[%clk 0:00:04]} 36. Qf5+ {[%clk 0:00:07]}  Kg7 {[%clk 0:00:04]} 37. Rd7 {[%clk 0:00:08]} 1-0


[Site "https://www.chess.com"]

[Event "Titled Tuesday Blitz November 15 Early 2022"]
[White "Georg, Heinz"]
[Black "Kaidanov, Gregory"]
[WhiteFideId "4607295"]
[BlackFideId "2008564"]
[WhiteElo "2334"]
[BlackElo "2638"]
[Result "0-1"]
[Round "06"]
[TimeControl "180+1"]
[Date "2022.11.16"]
[WhiteClock "0:00:25"]
[BlackClock "0:00:34"]

1. e4 {[%clk 0:03:00]}  e5 {[%clk 0:02:46]} 2. Nf3 {[%clk 0:03:00]}  Nc6 {[%clk 0:02:46]} 3. Nc3 {[%clk 0:03:00]}  Nf6 {[%clk 0:02:46]} 4. d4 {[%clk 0:03:00]}  exd4 {[%clk 0:02:46]} 5. Nd5 {[%clk 0:03:00]}  Be7 {[%clk 0:02:41]} 6. Nxd4 {[%clk 0:03:00]}  O-O {[%clk 0:02:40]} 7. Nb5 {[%clk 0:02:58]}  Nxd5 {[%clk 0:02:37]} 8. exd5 {[%clk 0:02:58]}  Ne5 {[%clk 0:02:38]} 9. d6 {[%clk 0:02:58]}  cxd6 {[%clk 0:02:36]} 10. Be2 {[%clk 0:02:57]}  b6 {[%clk 0:02:35]} 11. f4 {[%clk 0:02:50]}  Nc6 {[%clk 0:02:28]} 12. O-O {[%clk 0:02:46]}  Ba6 {[%clk 0:02:27]} 13. a4 {[%clk 0:02:39]}  Re8 {[%clk 0:02:23]} 14. Bf3 {[%clk 0:02:27]}  Rc8 {[%clk 0:02:19]} 15. Re1 {[%clk 0:02:18]}  Bf8 {[%clk 0:02:00]} 16. Be3 {[%clk 0:01:56]}  d5 {[%clk 0:01:54]} 17. Bxd5 {[%clk 0:01:50]}  Rxe3 {[%clk 0:01:53]} 18. Rxe3 {[%clk 0:01:50]}  Bc5 {[%clk 0:01:53]} 19. Ra3 {[%clk 0:01:40]}  Qf6 {[%clk 0:01:40]} 20. Kh1 {[%clk 0:01:30]}  Bxa3 {[%clk 0:01:26]} 21. bxa3 {[%clk 0:01:19]}  Bxb5 {[%clk 0:01:20]} 22. axb5 {[%clk 0:01:17]}  Nd4 {[%clk 0:01:20]} 23. c3 {[%clk 0:01:09]}  Nf5 {[%clk 0:01:18]} 24. Re5 {[%clk 0:01:04]}  g6 {[%clk 0:01:16]} 25. g4 {[%clk 0:00:33]}  Ne7 {[%clk 0:00:57]} 26. Qd4 {[%clk 0:00:33]}  Nxd5 {[%clk 0:00:36]} 27. Re8+ {[%clk 0:00:25]}  Rxe8 {[%clk 0:00:34]} 0-1


[Site "https://www.chess.com"]

[Event "Titled Tuesday Blitz November 15 Early 2022"]
[White "Ginzburg, Yakov"]
[Black "Durarbayli, Vasif"]
[WhiteFideId "4157176"]
[BlackFideId "13402935"]
[WhiteElo "2305"]
[BlackElo "2586"]
[Result "1/2-1/2"]
[Round "06"]
[TimeControl "180+1"]
[Date "2022.11.15"]
[WhiteClock "0:00:28"]
[BlackClock "0:00:29"]

1. e4 {[%clk 0:02:59]}  c5 {[%clk 0:02:56]} 2. Nf3 {[%clk 0:02:59]}  d6 {[%clk 0:02:55]} 3. Bb5+ {[%clk 0:02:55]}  Nd7 {[%clk 0:02:52]} 4. O-O {[%clk 0:02:55]}  a6 {[%clk 0:02:50]} 5. Bxd7+ {[%clk 0:02:54]}  Bxd7 {[%clk 0:02:50]} 6. d4 {[%clk 0:02:54]}  cxd4 {[%clk 0:02:51]} 7. Nxd4 {[%clk 0:02:54]}  Nf6 {[%clk 0:02:43]} 8. Nc3 {[%clk 0:02:53]}  g6 {[%clk 0:02:36]} 9. f4 {[%clk 0:02:51]}  Qc7 {[%clk 0:02:23]} 10. Qe2 {[%clk 0:02:40]}  Bg7 {[%clk 0:02:18]} 11. e5 {[%clk 0:02:17]}  dxe5 {[%clk 0:02:12]} 12. fxe5 {[%clk 0:02:17]}  Ng4 {[%clk 0:02:13]} 13. Bf4 {[%clk 0:01:06]}  Bxe5 {[%clk 0:01:46]} 14. Bxe5 {[%clk 0:01:01]}  Qxe5 {[%clk 0:01:46]} 15. Qxe5 {[%clk 0:01:00]}  Nxe5 {[%clk 0:01:47]} 16. Rae1 {[%clk 0:00:59]}  f6 {[%clk 0:01:44]} 17. Nd5 {[%clk 0:00:57]}  Kd8 {[%clk 0:01:08]} 18. Nb6 {[%clk 0:00:50]}  Rb8 {[%clk 0:01:08]} 19. c4 {[%clk 0:00:42]}  Re8 {[%clk 0:00:48]} 20. c5 {[%clk 0:00:30]}  Kc7 {[%clk 0:00:29]} 21. Nd5+ {[%clk 0:00:29]}  Kd8 {[%clk 0:00:29]} 22. Nb6 {[%clk 0:00:28]}  Kc7 {[%clk 0:00:29]} 23. Nd5+ {[%clk 0:00:28]}  Kd8 {[%clk 0:00:29]} 24. Nb6 {[%clk 0:00:28]} 1/2-1/2


[Site "https://www.chess.com"]

[Event "Titled Tuesday Blitz November 15 Early 2022"]
[White "Gjestemoen-VonHirsch, Andre"]
[Black "Godzwon, Iwo"]
[WhiteFideId "1539531"]
[BlackFideId "21802483"]
[WhiteElo "2198"]
[BlackElo "2284"]
[Result "0-1"]
[Round "06"]
[TimeControl "180+1"]
[Date "2022.11.16"]
[WhiteClock "0:00:07"]
[BlackClock "0:00:16"]

1. b3 {[%clk 0:03:00]}  e5 {[%clk 0:02:57]} 2. Bb2 {[%clk 0:03:01]}  Nc6 {[%clk 0:02:54]} 3. e3 {[%clk 0:03:01]}  Bd6 {[%clk 0:02:52]} 4. Nf3 {[%clk 0:02:50]}  Nf6 {[%clk 0:02:50]} 5. c4 {[%clk 0:02:24]}  O-O {[%clk 0:02:46]} 6. d4 {[%clk 0:02:23]}  exd4 {[%clk 0:02:43]} 7. Nxd4 {[%clk 0:02:23]}  Nxd4 {[%clk 0:02:39]} 8. Qxd4 {[%clk 0:02:23]}  Re8 {[%clk 0:02:39]} 9. Nc3 {[%clk 0:02:12]}  Be5 {[%clk 0:02:38]} 10. Qd2 {[%clk 0:02:13]}  d6 {[%clk 0:02:19]} 11. Be2 {[%clk 0:02:09]}  Bg4 {[%clk 0:02:15]} 12. h3 {[%clk 0:01:36]}  Bxe2 {[%clk 0:02:06]} 13. Qxe2 {[%clk 0:01:37]}  Ne4 {[%clk 0:01:57]} 14. Nxe4 {[%clk 0:01:27]}  Bxb2 {[%clk 0:01:57]} 15. Qxb2 {[%clk 0:01:28]}  Rxe4 {[%clk 0:01:57]} 16. Rd1 {[%clk 0:01:23]}  Qg5 {[%clk 0:01:55]} 17. O-O {[%clk 0:01:17]}  Rae8 {[%clk 0:01:55]} 18. Rd4 {[%clk 0:01:09]}  Qe5 {[%clk 0:01:45]} 19. Rfd1 {[%clk 0:01:07]}  h6 {[%clk 0:01:37]} 20. Qa3 {[%clk 0:00:44]}  a6 {[%clk 0:01:34]} 21. Rd5 {[%clk 0:00:36]}  Qc3 {[%clk 0:01:28]} 22. R5d3 {[%clk 0:00:35]}  Qf6 {[%clk 0:01:22]} 23. Qb4 {[%clk 0:00:31]}  b6 {[%clk 0:01:21]} 24. Qa4 {[%clk 0:00:27]}  a5 {[%clk 0:01:21]} 25. Qc6 {[%clk 0:00:27]}  Qe7 {[%clk 0:01:20]} 26. Rd4 {[%clk 0:00:22]}  Re5 {[%clk 0:01:20]} 27. a3 {[%clk 0:00:18]}  Rc5 {[%clk 0:01:19]} 28. Qf3 {[%clk 0:00:18]}  Qe6 {[%clk 0:01:17]} 29. Qe2 {[%clk 0:00:17]}  Rb8 {[%clk 0:01:08]} 30. b4 {[%clk 0:00:17]}  Rg5 {[%clk 0:01:04]} 31. Kf1 {[%clk 0:00:15]}  axb4 {[%clk 0:01:03]} 32. axb4 {[%clk 0:00:14]}  Ra8 {[%clk 0:01:03]} 33. Qf3 {[%clk 0:00:08]}  Ra2 {[%clk 0:00:59]} 34. Re4 {[%clk 0:00:09]}  Qd7 {[%clk 0:00:55]} 35. Rf4 {[%clk 0:00:07]}  Re5 {[%clk 0:00:47]} 36. Kg1 {[%clk 0:00:07]}  Re7 {[%clk 0:00:40]} 37. c5 {[%clk 0:00:05]}  bxc5 {[%clk 0:00:33]} 38. bxc5 {[%clk 0:00:06]}  Re6 {[%clk 0:00:24]} 39. cxd6 {[%clk 0:00:06]}  Rxd6 {[%clk 0:00:24]} 40. Rxd6 {[%clk 0:00:05]}  Ra1+ {[%clk 0:00:18]} 41. Kh2 {[%clk 0:00:05]}  Qxd6 {[%clk 0:00:18]} 42. g3 {[%clk 0:00:06]}  Qe6 {[%clk 0:00:14]} 43. Re4 {[%clk 0:00:06]}  Qd7 {[%clk 0:00:14]} 44. Rd4 {[%clk 0:00:06]}  Qe7 {[%clk 0:00:12]} 45. Qc6 {[%clk 0:00:06]}  Ra2 {[%clk 0:00:10]} 46. Kg2 {[%clk 0:00:05]}  Qxe3 {[%clk 0:00:07]} 47. Rd8+ {[%clk 0:00:02]}  Kh7 {[%clk 0:00:07]} 48. Qf3 {[%clk 0:00:01]}  Qxf3+ {[%clk 0:00:06]} 49. Kxf3 {[%clk 0:00:02]}  Rc2 {[%clk 0:00:06]} 50. Rc8 {[%clk 0:00:03]}  Kg6 {[%clk 0:00:07]} 51. Ke3 {[%clk 0:00:03]}  Kf6 {[%clk 0:00:07]} 52. Kd3 {[%clk 0:00:02]}  Rxf2 {[%clk 0:00:06]} 53. Rxc7 {[%clk 0:00:03]}  Rf3+ {[%clk 0:00:07]} 54. Ke4 {[%clk 0:00:03]}  Rxg3 {[%clk 0:00:08]} 55. Rc6+ {[%clk 0:00:03]}  Kg5 {[%clk 0:00:08]} 56. Rc7 {[%clk 0:00:04]}  Kg6 {[%clk 0:00:08]} 57. Rc6+ {[%clk 0:00:04]}  f6 {[%clk 0:00:08]} 58. Kf4 {[%clk 0:00:04]}  Rxh3 {[%clk 0:00:08]} 59. Kg4 {[%clk 0:00:03]}  Rh5 {[%clk 0:00:08]} 60. Rc7 {[%clk 0:00:03]}  Rg5+ {[%clk 0:00:09]} 61. Kf4 {[%clk 0:00:04]}  h5 {[%clk 0:00:10]} 62. Rc2 {[%clk 0:00:03]}  Rg4+ {[%clk 0:00:10]} 63. Kf3 {[%clk 0:00:04]}  Kg5 {[%clk 0:00:11]} 64. Rh2 {[%clk 0:00:05]}  f5 {[%clk 0:00:11]} 65. Rb2 {[%clk 0:00:05]}  g6 {[%clk 0:00:12]} 66. Rb7 {[%clk 0:00:05]}  h4 {[%clk 0:00:13]} 67. Rh7 {[%clk 0:00:05]}  Rg3+ {[%clk 0:00:13]} 68. Kf2 {[%clk 0:00:06]}  Kg4 {[%clk 0:00:14]} 69. Rh6 {[%clk 0:00:05]}  g5 {[%clk 0:00:14]} 70. Kf1 {[%clk 0:00:05]}  f4 {[%clk 0:00:15]} 71. Kf2 {[%clk 0:00:06]}  f3 {[%clk 0:00:15]} 72. Kf1 {[%clk 0:00:06]}  h3 {[%clk 0:00:15]} 73. Kf2 {[%clk 0:00:07]}  Rg2+ {[%clk 0:00:15]} 74. Kf1 {[%clk 0:00:07]}  h2 {[%clk 0:00:16]} 75. Rh7 {[%clk 0:00:07]}  Rg1+ {[%clk 0:00:16]} 76. Kf2 {[%clk 0:00:07]}  h1=Q {[%clk 0:00:17]} 77. Rh4+ {[%clk 0:00:07]}  Qxh4+ {[%clk 0:00:16]} 0-1


[Site "https://www.chess.com"]

[Event "Titled Tuesday Blitz November 15 Early 2022"]
[White "Goltseva, Ekaterina"]
[Black "Sarkar, Justin"]
[WhiteFideId "24173770"]
[BlackFideId "2010011"]
[WhiteElo "2200"]
[BlackElo "2239"]
[Result "1-0"]
[Round "06"]
[TimeControl "180+1"]
[Date "2022.11.16"]
[WhiteClock "0:00:04"]
[BlackClock "0:00:01"]

1. d4 {[%clk 0:02:18]}  Nf6 {[%clk 0:02:53]} 2. c3 {[%clk 0:02:17]}  d5 {[%clk 0:02:48]} 3. Nf3 {[%clk 0:02:18]}  c5 {[%clk 0:02:15]} 4. g3 {[%clk 0:02:14]}  Qb6 {[%clk 0:01:56]} 5. Bg2 {[%clk 0:02:13]}  Nc6 {[%clk 0:01:50]} 6. O-O {[%clk 0:02:05]}  cxd4 {[%clk 0:01:46]} 7. cxd4 {[%clk 0:02:05]}  Bg4 {[%clk 0:01:38]} 8. Nc3 {[%clk 0:01:57]}  e6 {[%clk 0:01:32]} 9. Na4 {[%clk 0:01:55]}  Qa5 {[%clk 0:01:19]} 10. a3 {[%clk 0:01:45]}  Ne4 {[%clk 0:01:04]} 11. b4 {[%clk 0:01:37]}  Qb5 {[%clk 0:00:58]} 12. h3 {[%clk 0:00:56]}  Bh5 {[%clk 0:00:49]} 13. g4 {[%clk 0:00:55]}  Bg6 {[%clk 0:00:48]} 14. Nh4 {[%clk 0:00:46]}  Be7 {[%clk 0:00:42]} 15. Nxg6 {[%clk 0:00:44]}  hxg6 {[%clk 0:00:43]} 16. Be3 {[%clk 0:00:21]}  a5 {[%clk 0:00:38]} 17. Bxe4 {[%clk 0:00:17]}  dxe4 {[%clk 0:00:37]} 18. Nc3 {[%clk 0:00:17]}  Qc4 {[%clk 0:00:33]} 19. Nxe4 {[%clk 0:00:16]}  axb4 {[%clk 0:00:26]} 20. axb4 {[%clk 0:00:15]}  Rxa1 {[%clk 0:00:24]} 21. Qxa1 {[%clk 0:00:16]}  Rxh3 {[%clk 0:00:16]} 22. Kg2 {[%clk 0:00:16]}  Rh8 {[%clk 0:00:12]} 23. Qa8+ {[%clk 0:00:09]}  Nd8 {[%clk 0:00:12]} 24. Ng3 {[%clk 0:00:06]}  Qd5+ {[%clk 0:00:09]} 25. f3 {[%clk 0:00:05]}  Bd6 {[%clk 0:00:08]} 26. Qa4+ {[%clk 0:00:05]}  Nc6 {[%clk 0:00:07]} 27. b5 {[%clk 0:00:05]}  Nd8 {[%clk 0:00:06]} 28. Rc1 {[%clk 0:00:05]}  Bxg3 {[%clk 0:00:04]} 29. Kxg3 {[%clk 0:00:05]}  e5 {[%clk 0:00:04]} 30. dxe5 {[%clk 0:00:02]}  Qxe5+ {[%clk 0:00:04]} 31. Qf4 {[%clk 0:00:02]}  Qxf4+ {[%clk 0:00:03]} 32. Bxf4 {[%clk 0:00:03]}  Ne6 {[%clk 0:00:02]} 33. Rc8+ {[%clk 0:00:03]}  Nd8 {[%clk 0:00:03]} 34. Rc7 {[%clk 0:00:03]}  g5 {[%clk 0:00:02]} 35. Bxg5 {[%clk 0:00:03]}  f6 {[%clk 0:00:02]} 36. Bf4 {[%clk 0:00:03]}  g5 {[%clk 0:00:02]} 37. Be3 {[%clk 0:00:03]}  Rf8 {[%clk 0:00:01]} 38. Bc5 {[%clk 0:00:02]}  Rf7 {[%clk 0:00:01]} 39. Rc8 {[%clk 0:00:02]}  Kd7 {[%clk 0:00:01]} 40. Rb8 {[%clk 0:00:03]}  Kc7 {[%clk 0:00:01]} 41. Ra8 {[%clk 0:00:03]}  Ne6 {[%clk 0:00:01]} 42. Be3 {[%clk 0:00:02]}  Rd7 {[%clk 0:00:01]} 43. b6+ {[%clk 0:00:03]}  Kc6 {[%clk 0:00:01]} 44. Rc8+ {[%clk 0:00:03]}  Kb5 {[%clk 0:00:01]} 45. Rb8 {[%clk 0:00:04]} 1-0


[Site "https://www.chess.com"]